[Event "*** Titled Tuesday Blitz"]
[Site "Chess.com"]
[Date "2018.05.01"]
[Round "5"]
[White "DishonorOnYourCow"]
[Black "XiaoKangZhong"]
[Result "0-1"]
[WhiteElo "2291"]
[BlackElo "2206"]
[TimeControl "180+2"]
[EndTime "14:09:24 PDT"]
[Termination "XiaoKangZhong won by resignation"]

1. d4 {[%clk 0:03:01.9]} 1... Nf6 {[%clk 0:03:00.2]} 2. c4 {[%clk 0:03:02.7]}
2... g6 {[%clk 0:03:01]} 3. Nc3 {[%clk 0:03:03.5]} 3... d5 {[%clk 0:03:02.2]} 4.
cxd5 {[%clk 0:03:04.3]} 4... Nxd5 {[%clk 0:03:04.1]} 5. e4 {[%clk 0:03:05.3]}
5... Nxc3 {[%clk 0:03:04.8]} 6. bxc3 {[%clk 0:03:06.4]} 6... Bg7 {[%clk
0:03:06]} 7. Bc4 {[%clk 0:03:04.3]} 7... c5 {[%clk 0:03:04.7]} 8. Ne2 {[%clk
0:03:05]} 8... O-O {[%clk 0:03:05]} 9. O-O {[%clk 0:03:04.1]} 9... Nc6 {[%clk
0:03:05.8]} 10. Be3 {[%clk 0:03:05.3]} 10... Qc7 {[%clk 0:03:05.7]} 11. Rc1
{[%clk 0:03:05.9]} 11... Rd8 {[%clk 0:03:05.3]} 12. Bf4 {[%clk 0:03:05.9]} 12...
Be5 {[%clk 0:03:04.4]} 13. Bxe5 {[%clk 0:02:55.9]} 13... Nxe5 {[%clk 0:03:03.6]}
14. Bb3 {[%clk 0:02:55.9]} 14... b5 {[%clk 0:02:58.2]} 15. Bd5 {[%clk
0:02:41.5]} 15... Nc6 {[%clk 0:02:54.6]} 16. c4 {[%clk 0:02:07.2]} 16... b4
{[%clk 0:02:35.1]} 17. Qb3 {[%clk 0:01:20.4]} 17... e6 {[%clk 0:02:31.1]} 18.
Bxc6 {[%clk 0:01:18.7]} 18... Qxc6 {[%clk 0:02:31.8]} 19. d5 {[%clk 0:01:20]}
19... Qa6 {[%clk 0:02:27]} 20. Nf4 {[%clk 0:01:16.2]} 20... exd5 {[%clk
0:02:24.9]} 21. exd5 {[%clk 0:01:10.3]} 21... Bd7 {[%clk 0:02:23.1]} 22. Nd3
{[%clk 0:01:10.2]} 22... Rac8 {[%clk 0:02:22.7]} 23. Rfe1 {[%clk 0:01:09.5]}
23... Bf5 {[%clk 0:02:21.6]} 24. Ne5 {[%clk 0:01:09.4]} 24... Re8 {[%clk
0:02:21.2]} 25. Nc6 {[%clk 0:01:07.3]} 25... Qb7 {[%clk 0:02:16.6]} 26. h3
{[%clk 0:01:06.3]} 26... Kg7 {[%clk 0:02:07.1]} 27. Qb2+ {[%clk 0:01:06.7]}
27... f6 {[%clk 0:02:07.6]} 28. g4 {[%clk 0:00:52.4]} 28... Be4 {[%clk
0:01:47.4]} 29. g5 {[%clk 0:00:51.7]} 29... Qf7 {[%clk 0:01:47.4]} 30. Qxf6+
{[%clk 0:00:47.4]} 30... Qxf6 {[%clk 0:01:48.3]} 31. gxf6+ {[%clk 0:00:48.6]}
31... Kxf6 {[%clk 0:01:49.6]} 32. Nxa7 {[%clk 0:00:27.2]} 32... Ra8 {[%clk
0:01:45.6]} 33. Nb5 {[%clk 0:00:26.1]} 33... Re5 {[%clk 0:01:41.8]} 34. Nd6
{[%clk 0:00:20.2]} 34... Rg5+ {[%clk 0:01:40.3]} 35. Kf1 {[%clk 0:00:18]} 35...
Bd3+ {[%clk 0:01:40.6]} 36. Re2 {[%clk 0:00:18.1]} 36... Rxa2 {[%clk 0:01:36.4]}
37. Ne4+ {[%clk 0:00:17.8]} 37... Kf5 {[%clk 0:01:33.5]} 38. Nxg5 {[%clk
0:00:17.1]} 38... Bxe2+ {[%clk 0:01:33.7]} 39. Ke1 {[%clk 0:00:16.7]} 39... Kxg5
{[%clk 0:01:30.4]} 40. d6 {[%clk 0:00:18]} 40... Ra6 {[%clk 0:01:29.1]} 41. Kxe2
{[%clk 0:00:18.1]} 41... Rxd6 {[%clk 0:01:30.2]} 42. Rg1+ {[%clk 0:00:18.4]}
42... Kf5 {[%clk 0:01:29.9]} 43. Ke3 {[%clk 0:00:17.7]} 43... Rd4 {[%clk
0:01:30.3]} 44. Rc1 {[%clk 0:00:18.6]} 44... g5 {[%clk 0:01:30.4]} 45. f3 {[%clk
0:00:19.2]} 45... h6 {[%clk 0:01:31.2]} 46. Rc2 {[%clk 0:00:19.7]} 46... Ke5
{[%clk 0:01:31.3]} 47. Rc1 {[%clk 0:00:19.6]} 47... Rh4 {[%clk 0:01:32.2]} 48.
Rd1 {[%clk 0:00:20]} 48... Rd4 {[%clk 0:01:32.5]} 49. Rc1 {[%clk 0:00:12.9]}
49... Rh4 {[%clk 0:01:30.7]} 50. Rc2 {[%clk 0:00:11.9]} 50... b3 {[%clk
0:01:27]} 51. Rb2 {[%clk 0:00:11.9]} 51... Rxc4 {[%clk 0:01:25.7]} 52. Rxb3
{[%clk 0:00:13.1]} 52... Rh4 {[%clk 0:01:26.1]} 53. Rc3 {[%clk 0:00:12.7]} 53...
c4 {[%clk 0:01:25.4]} 54. Rc1 {[%clk 0:00:13.7]} 54... Kd5 {[%clk 0:01:25.4]}
55. Rd1+ {[%clk 0:00:14.7]} 55... Kc5 {[%clk 0:01:26.7]} 56. Rd8 {[%clk
0:00:14.7]} 56... Rxh3 {[%clk 0:01:27.5]} 57. Rc8+ {[%clk 0:00:15.3]} 57... Kb4
{[%clk 0:01:28.5]} 58. Rc6 {[%clk 0:00:16.3]} 58... g4 {[%clk 0:01:24.9]} 59.
Rb6+ {[%clk 0:00:09.4]} 59... Kc5 {[%clk 0:01:23.4]} 60. Rb8 {[%clk 0:00:10.5]}
60... Rxf3+ {[%clk 0:01:22.7]} 61. Kd2 {[%clk 0:00:11]} 61... h5 {[%clk
0:01:21.8]} 62. Rc8+ {[%clk 0:00:11.9]} 62... Kd5 {[%clk 0:01:19.9]} 63. Rd8+
{[%clk 0:00:13]} 63... Ke5 {[%clk 0:01:20]} 64. Re8+ {[%clk 0:00:14.2]} 64...
Kf4 {[%clk 0:01:21]} 65. Rh8 {[%clk 0:00:14.8]} 65... Rh3 {[%clk 0:01:21]} 66.
Rf8+ {[%clk 0:00:15.2]} 66... Kg5 {[%clk 0:01:21]} 67. Rc8 {[%clk 0:00:16.1]}
67... c3+ {[%clk 0:01:22]} 68. Kc2 {[%clk 0:00:16.5]} 68... Rf3 {[%clk 0:01:23]}
69. Rg8+ {[%clk 0:00:15.4]} 69... Kh4 {[%clk 0:01:24.1]} 70. Kd1 {[%clk
0:00:14.5]} 70... Kh3 {[%clk 0:01:24.6]} 71. Rg5 {[%clk 0:00:14.5]} 71... h4
{[%clk 0:01:25.7]} 72. Ke2 {[%clk 0:00:15.1]} 72... c2 {[%clk 0:01:25.2]} 73.
Rc5 {[%clk 0:00:15.8]} 73... Rg3 {[%clk 0:01:26.3]} 74. Kf2 {[%clk 0:00:16.2]}
74... Rg2+ {[%clk 0:01:27.2]} 75. Kf1 {[%clk 0:00:17.5]} 75... g3 {[%clk
0:01:28.1]} 76. Rc4 {[%clk 0:00:17.7]} 76... Rf2+ {[%clk 0:01:26.4]} 77. Kg1
{[%clk 0:00:18.6]} 77... Rd2 {[%clk 0:01:27.4]} 0-1

[Event "*** Titled Tuesday Blitz"]
[Site "Chess.com"]
[Date "2018.05.01"]
[Round "5"]
[White "chessking2151"]
[Black "Msb2"]
[Result "1-0"]
[WhiteElo "2432"]
[BlackElo "2696"]
[TimeControl "180+2"]
[EndTime "14:09:29 PDT"]
[Termination "chessking2151 won by checkmate"]

1. d4 {[%clk 0:03:01.9]} 1... Nf6 {[%clk 0:03:00.4]} 2. c4 {[%clk 0:02:59.2]}
2... e6 {[%clk 0:03:01.6]} 3. Nf3 {[%clk 0:03:00]} 3... d5 {[%clk 0:03:03]} 4.
Nc3 {[%clk 0:03:00.6]} 4... Bb4 {[%clk 0:03:03.7]} 5. Bg5 {[%clk 0:02:56.7]}
5... dxc4 {[%clk 0:03:04.9]} 6. e4 {[%clk 0:02:53.7]} 6... h6 {[%clk 0:03:06.2]}
7. Bxf6 {[%clk 0:02:50.1]} 7... Qxf6 {[%clk 0:03:08.1]} 8. Bxc4 {[%clk
0:02:51.3]} 8... c5 {[%clk 0:03:09.7]} 9. O-O {[%clk 0:02:47.4]} 9... O-O {[%clk
0:03:10.8]} 10. e5 {[%clk 0:02:28.2]} 10... Qd8 {[%clk 0:03:10]} 11. d5 {[%clk
0:02:26.2]} 11... Bxc3 {[%clk 0:03:10.9]} 12. bxc3 {[%clk 0:02:24.2]} 12... exd5
{[%clk 0:03:12]} 13. Bxd5 {[%clk 0:02:23.9]} 13... Nc6 {[%clk 0:03:12.7]} 14.
Bxc6 {[%clk 0:02:04.8]} 14... bxc6 {[%clk 0:03:14.6]} 15. Qa4 {[%clk 0:02:05.4]}
15... Qd3 {[%clk 0:02:46.5]} 16. Rac1 {[%clk 0:01:47.4]} 16... Be6 {[%clk
0:02:17.1]} 17. c4 {[%clk 0:01:05.2]} 17... Rfc8 {[%clk 0:01:55.3]} 18. Rfd1
{[%clk 0:01:02.2]} 18... Qe4 {[%clk 0:01:56.3]} 19. Qa3 {[%clk 0:00:54.3]} 19...
Rd8 {[%clk 0:01:40.3]} 20. Re1 {[%clk 0:00:49.3]} 20... Qg6 {[%clk 0:01:26.3]}
21. Qxc5 {[%clk 0:00:48.1]} 21... Rd3 {[%clk 0:01:27.9]} 22. Nd4 {[%clk
0:00:38.6]} 22... Bh3 {[%clk 0:01:28]} 23. Qxc6 {[%clk 0:00:25.6]} 23... Qxg2+
{[%clk 0:01:08.6]} 24. Qxg2 {[%clk 0:00:24.7]} 24... Bxg2 {[%clk 0:01:10.5]} 25.
Red1 {[%clk 0:00:19.5]} 25... Rxd1+ {[%clk 0:01:08.8]} 26. Rxd1 {[%clk
0:00:21.4]} 26... Bb7 {[%clk 0:00:52]} 27. Rb1 {[%clk 0:00:15.2]} 27... Be4
{[%clk 0:00:52.8]} 28. Re1 {[%clk 0:00:15.3]} 28... Bg6 {[%clk 0:00:28.5]} 29.
c5 {[%clk 0:00:15.1]} 29... Kf8 {[%clk 0:00:29.8]} 30. f4 {[%clk 0:00:14.7]}
30... Rd8 {[%clk 0:00:30.2]} 31. Rd1 {[%clk 0:00:16]} 31... Ke8 {[%clk
0:00:25.8]} 32. Kf2 {[%clk 0:00:16.2]} 32... Be4 {[%clk 0:00:21.2]} 33. Ke3
{[%clk 0:00:16.3]} 33... Bd5 {[%clk 0:00:21.3]} 34. Rb1 {[%clk 0:00:14.4]} 34...
Rc8 {[%clk 0:00:21.7]} 35. Rb5 {[%clk 0:00:09.7]} 35... Bxa2 {[%clk 0:00:21.1]}
36. Ra5 {[%clk 0:00:10]} 36... Bd5 {[%clk 0:00:22.1]} 37. Nf5 {[%clk 0:00:11.4]}
37... Rc7 {[%clk 0:00:21]} 38. Kd4 {[%clk 0:00:11.7]} 38... Bh1 {[%clk
0:00:14.1]} 39. Nxg7+ {[%clk 0:00:11.7]} 39... Kd7 {[%clk 0:00:15.6]} 40. Nf5
{[%clk 0:00:12.9]} 40... Kc6 {[%clk 0:00:16.6]} 41. Nd6 {[%clk 0:00:12.4]} 41...
Kd7 {[%clk 0:00:15.6]} 42. Ra6 {[%clk 0:00:12.6]} 42... Ke7 {[%clk 0:00:10.1]}
43. f5 {[%clk 0:00:13.6]} 43... Bc6 {[%clk 0:00:09.3]} 44. Rxa7 {[%clk
0:00:07.4]} 44... Rxa7 {[%clk 0:00:07.2]} 45. Nc8+ {[%clk 0:00:08.5]} 45... Kd8
{[%clk 0:00:07.8]} 46. Nxa7 {[%clk 0:00:10.4]} 46... Be8 {[%clk 0:00:09.6]} 47.
c6 {[%clk 0:00:10.9]} 47... Kc7 {[%clk 0:00:10.8]} 48. Kc5 {[%clk 0:00:12]}
48... h5 {[%clk 0:00:12.1]} 49. Nb5+ {[%clk 0:00:12.9]} 49... Kd8 {[%clk
0:00:13.9]} 50. Kd6 {[%clk 0:00:13.6]} 50... Bxc6 {[%clk 0:00:12.2]} 51. Kxc6
{[%clk 0:00:14.5]} 51... Ke7 {[%clk 0:00:14.1]} 52. Kd5 {[%clk 0:00:14.3]} 52...
h4 {[%clk 0:00:15.5]} 53. f6+ {[%clk 0:00:15.1]} 53... Kf8 {[%clk 0:00:16.7]}
54. Kd6 {[%clk 0:00:15.4]} 54... Kg8 {[%clk 0:00:18.6]} 55. Ke7 {[%clk
0:00:16.4]} 55... h3 {[%clk 0:00:19.6]} 56. Nd6 {[%clk 0:00:17.5]} 56... Kh7
{[%clk 0:00:20.3]} 57. Kxf7 {[%clk 0:00:18.1]} 57... Kh6 {[%clk 0:00:21.2]} 58.
Kg8 {[%clk 0:00:18.7]} 58... Kg5 {[%clk 0:00:23.1]} 59. f7 {[%clk 0:00:19.8]}
59... Kf4 {[%clk 0:00:24.6]} 60. f8=Q+ {[%clk 0:00:21.2]} 60... Ke3 {[%clk
0:00:26.5]} 61. Qf5 {[%clk 0:00:21.3]} 61... Kd4 {[%clk 0:00:28.4]} 62. Nc4
{[%clk 0:00:20.8]} 62... Kc3 {[%clk 0:00:29.4]} 63. e6 {[%clk 0:00:20.9]} 63...
Kd4 {[%clk 0:00:31.3]} 64. Ne3 {[%clk 0:00:21.4]} 64... Kc3 {[%clk 0:00:33.2]}
65. Qxh3 {[%clk 0:00:22.2]} 65... Kd4 {[%clk 0:00:35.1]} 66. Qg4+ {[%clk
0:00:22.6]} 66... Kc3 {[%clk 0:00:37]} 67. Qc4+ {[%clk 0:00:23.6]} 67... Kd2
{[%clk 0:00:38.3]} 68. Nd5 {[%clk 0:00:24.5]} 68... Ke1 {[%clk 0:00:40.2]} 69.
Qc2 {[%clk 0:00:24.8]} 69... Kf1 {[%clk 0:00:41.3]} 70. Nf4 {[%clk 0:00:26]}
70... Ke1 {[%clk 0:00:41.4]} 71. Qe2# {[%clk 0:00:27]} 1-0

[Event "*** Titled Tuesday Blitz"]
[Site "Chess.com"]
[Date "2018.05.01"]
[Round "5"]
[White "MFBerna"]
[Black "Alzhur"]
[Result "1/2-1/2"]
[WhiteElo "2294"]
[BlackElo "2481"]
[TimeControl "180+2"]
[EndTime "14:09:47 PDT"]
[Termination "Game drawn by agreement"]

1. e4 {[%clk 0:02:56.9]} 1... c5 {[%clk 0:02:56.5]} 2. Nf3 {[%clk 0:02:57.4]}
2... e6 {[%clk 0:02:55.1]} 3. d4 {[%clk 0:02:57.8]} 3... cxd4 {[%clk 0:02:45.7]}
4. Nxd4 {[%clk 0:02:59.7]} 4... a6 {[%clk 0:02:46.5]} 5. Bd3 {[%clk 0:02:59.3]}
5... Qc7 {[%clk 0:02:46.1]} 6. O-O {[%clk 0:02:52.5]} 6... Nf6 {[%clk
0:02:44.8]} 7. Nc3 {[%clk 0:02:51.7]} 7... Nc6 {[%clk 0:02:44.1]} 8. Be3 {[%clk
0:02:48.1]} 8... Ne5 {[%clk 0:02:42]} 9. h3 {[%clk 0:02:43.3]} 9... Bc5 {[%clk
0:02:38.2]} 10. f4 {[%clk 0:02:40]} 10... Nc6 {[%clk 0:02:37.4]} 11. Nce2 {[%clk
0:02:24.8]} 11... Qb6 {[%clk 0:02:35.4]} 12. c3 {[%clk 0:02:18.1]} 12... d6
{[%clk 0:02:31.3]} 13. b4 {[%clk 0:02:17.1]} 13... Bxd4 {[%clk 0:02:30]} 14.
Nxd4 {[%clk 0:02:19]} 14... Nxd4 {[%clk 0:02:29.7]} 15. Bxd4 {[%clk 0:02:19.8]}
15... Qc7 {[%clk 0:02:30.5]} 16. e5 {[%clk 0:02:19.3]} 16... dxe5 {[%clk
0:02:26.5]} 17. fxe5 {[%clk 0:02:20.1]} 17... Nd5 {[%clk 0:02:24.7]} 18. Qf3
{[%clk 0:02:15.6]} 18... O-O {[%clk 0:01:59]} 19. Rae1 {[%clk 0:02:11.6]} 19...
b5 {[%clk 0:01:57.5]} 20. Re4 {[%clk 0:02:04.7]} 20... g6 {[%clk 0:01:52.2]} 21.
Rh4 {[%clk 0:01:57.8]} 21... Qe7 {[%clk 0:01:47.5]} 22. Qg3 {[%clk 0:01:40.1]}
22... Bb7 {[%clk 0:01:43.8]} 23. Bc5 {[%clk 0:01:38.5]} 23... Qd8 {[%clk
0:01:41.7]} 24. Bxf8 {[%clk 0:01:38.2]} 24... Qxf8 {[%clk 0:01:41.1]} 25. Be4
{[%clk 0:01:33.7]} 25... Rc8 {[%clk 0:01:40]} 26. Bxd5 {[%clk 0:01:23.8]} 26...
Bxd5 {[%clk 0:01:37.9]} 27. Rhf4 {[%clk 0:01:19.6]} 27... Rc7 {[%clk 0:01:37.2]}
28. Qf2 {[%clk 0:01:13.9]} 28... Bc4 {[%clk 0:01:31.4]} 29. Rd1 {[%clk
0:01:09.6]} 29... Bd5 {[%clk 0:01:30.5]} 30. Rxd5 {[%clk 0:01:08.6]} 30... exd5
{[%clk 0:01:29.4]} 31. e6 {[%clk 0:01:08.9]} 31... f5 {[%clk 0:01:24.3]} 32. Qd4
{[%clk 0:01:06.3]} 32... Qd6 {[%clk 0:01:20]} 33. Rf3 {[%clk 0:00:57.3]} 33...
Re7 {[%clk 0:01:14.9]} 34. Rd3 {[%clk 0:00:50]} 34... Rxe6 {[%clk 0:01:13.2]}
35. Qxd5 {[%clk 0:00:50.5]} 35... Qxd5 {[%clk 0:01:13.6]} 36. Rxd5 {[%clk
0:00:52.4]} 36... Rc6 {[%clk 0:01:02.3]} 37. a4 {[%clk 0:00:46.8]} 37... bxa4
{[%clk 0:01:00.7]} 38. Ra5 {[%clk 0:00:47.1]} 38... Rxc3 {[%clk 0:00:58.5]} 39.
Rxa4 {[%clk 0:00:47.4]} 39... Rc6 {[%clk 0:00:59]} 40. Kf2 {[%clk 0:00:47]}
40... Kf7 {[%clk 0:00:58.9]} 41. Ke3 {[%clk 0:00:47.7]} 41... Ke6 {[%clk
0:00:59.3]} 42. Kd4 {[%clk 0:00:48.3]} 42... Rd6+ {[%clk 0:00:58.9]} 43. Kc5
{[%clk 0:00:48.8]} 43... Rd5+ {[%clk 0:00:54.8]} 44. Kc4 {[%clk 0:00:45.5]}
44... Rd2 {[%clk 0:00:54.3]} 45. Rxa6+ {[%clk 0:00:46]} 45... Ke5 {[%clk
0:00:54.1]} 46. Ra7 {[%clk 0:00:46.3]} 46... h5 {[%clk 0:00:52.5]} 47. b5 {[%clk
0:00:35.9]} 47... Rxg2 {[%clk 0:00:51.9]} 48. b6 {[%clk 0:00:35.3]} 48... Rb2
{[%clk 0:00:51.5]} 49. Ra5+ {[%clk 0:00:35.2]} 49... Kd6 {[%clk 0:00:48.5]} 50.
Rb5 {[%clk 0:00:19]} 50... Rc2+ {[%clk 0:00:47.5]} 51. Kd4 {[%clk 0:00:17.2]}
51... Rc8 {[%clk 0:00:45.7]} 52. b7 {[%clk 0:00:17.2]} 52... Rb8 {[%clk
0:00:46]} 53. Rb6+ {[%clk 0:00:18.2]} 53... Kc7 {[%clk 0:00:46.6]} 54. Rxg6
{[%clk 0:00:18.4]} 54... Rxb7 {[%clk 0:00:47.4]} 55. Rg7+ {[%clk 0:00:18.4]}
55... Kc6 {[%clk 0:00:47.3]} 56. Rxb7 {[%clk 0:00:18.4]} 56... Kxb7 {[%clk
0:00:48]} 57. Ke5 {[%clk 0:00:19.5]} 57... Kc7 {[%clk 0:00:48.8]} 58. Kxf5
{[%clk 0:00:20.3]} 58... Kd7 {[%clk 0:00:49.3]} 59. Kg5 {[%clk 0:00:20]} 59...
Ke7 {[%clk 0:00:49.8]} 60. Kxh5 {[%clk 0:00:20.6]} 60... Kf7 {[%clk 0:00:50.4]}
61. Kh6 {[%clk 0:00:21.3]} 61... Kg8 {[%clk 0:00:50.5]} 1/2-1/2

[Event "*** Titled Tuesday Blitz"]
[Site "Chess.com"]
[Date "2018.05.01"]
[Round "5"]
[White "Fins0905"]
[Black "chidori_boruto"]
[Result "1-0"]
[WhiteElo "2573"]
[BlackElo "2517"]
[TimeControl "180+2"]
[EndTime "14:09:58 PDT"]
[Termination "Fins0905 won on time"]

1. d4 {[%clk 0:03:01.9]} 1... d5 {[%clk 0:03:00.3]} 2. c4 {[%clk 0:03:02.4]}
2... c6 {[%clk 0:03:00.3]} 3. cxd5 {[%clk 0:03:03]} 3... cxd5 {[%clk 0:03:00.6]}
4. Nf3 {[%clk 0:03:04.7]} 4... Nf6 {[%clk 0:02:56.4]} 5. Nc3 {[%clk 0:03:05.3]}
5... Nc6 {[%clk 0:02:55]} 6. Bf4 {[%clk 0:03:06]} 6... Bf5 {[%clk 0:02:54.7]} 7.
e3 {[%clk 0:03:06.6]} 7... e6 {[%clk 0:02:52.3]} 8. Qb3 {[%clk 0:03:07.1]} 8...
Bb4 {[%clk 0:02:44.8]} 9. Bb5 {[%clk 0:03:06.5]} 9... O-O {[%clk 0:02:38.7]} 10.
O-O {[%clk 0:03:04.1]} 10... Bxc3 {[%clk 0:02:36.6]} 11. Qxc3 {[%clk 0:03:04.6]}
11... Rc8 {[%clk 0:02:37.3]} 12. Rfc1 {[%clk 0:03:02.7]} 12... a6 {[%clk
0:02:28.8]} 13. Bf1 {[%clk 0:02:56.6]} 13... Ne4 {[%clk 0:02:27.9]} 14. Qa3
{[%clk 0:02:41.2]} 14... g5 {[%clk 0:02:27.2]} 15. Bg3 {[%clk 0:02:40.3]} 15...
h5 {[%clk 0:02:20.1]} 16. h3 {[%clk 0:02:09.4]} 16... Nxg3 {[%clk 0:02:18.9]}
17. fxg3 {[%clk 0:02:09.9]} 17... Qf6 {[%clk 0:02:05.1]} 18. Be2 {[%clk
0:01:32.2]} 18... Be4 {[%clk 0:01:51.6]} 19. Rf1 {[%clk 0:01:27.6]} 19... Qg7
{[%clk 0:01:50.1]} 20. Nh2 {[%clk 0:00:56]} 20... Bg6 {[%clk 0:01:47.6]} 21.
Rad1 {[%clk 0:00:40.7]} 21... Rc7 {[%clk 0:01:45.8]} 22. g4 {[%clk 0:00:37.5]}
22... h4 {[%clk 0:01:42.7]} 23. Nf3 {[%clk 0:00:36.4]} 23... f6 {[%clk
0:01:42.4]} 24. Qd6 {[%clk 0:00:34.9]} 24... Qd7 {[%clk 0:01:42.4]} 25. Qxd7
{[%clk 0:00:35.4]} 25... Rxd7 {[%clk 0:01:44.3]} 26. Rc1 {[%clk 0:00:35.1]}
26... Rc8 {[%clk 0:01:43.8]} 27. Rc5 {[%clk 0:00:29.7]} 27... Rdc7 {[%clk
0:01:43.2]} 28. Rfc1 {[%clk 0:00:30.5]} 28... Be8 {[%clk 0:01:43.6]} 29. b4
{[%clk 0:00:27.3]} 29... b5 {[%clk 0:01:37.4]} 30. a4 {[%clk 0:00:23.6]} 30...
Kf7 {[%clk 0:01:24.1]} 31. axb5 {[%clk 0:00:23.9]} 31... axb5 {[%clk 0:00:55.5]}
32. Bxb5 {[%clk 0:00:25.8]} 32... Ke7 {[%clk 0:00:56.1]} 33. Ba6 {[%clk
0:00:24.6]} 33... Ra8 {[%clk 0:00:56.2]} 34. b5 {[%clk 0:00:22]} 34... Kd6
{[%clk 0:00:55]} 35. b6 {[%clk 0:00:16.6]} 35... Rxa6 {[%clk 0:00:53.1]} 36.
bxc7 {[%clk 0:00:17.3]} 36... Kxc7 {[%clk 0:00:55]} 37. Rb5 {[%clk 0:00:15.9]}
37... Kd6 {[%clk 0:00:55.1]} 38. Rb7 {[%clk 0:00:15.7]} 38... Bd7 {[%clk
0:00:55.3]} 39. Ne1 {[%clk 0:00:15.6]} 39... Ra3 {[%clk 0:00:56]} 40. Kf2 {[%clk
0:00:14.7]} 40... e5 {[%clk 0:00:57.3]} 41. dxe5+ {[%clk 0:00:12.6]} 41... fxe5
{[%clk 0:00:59.2]} 42. Rd1 {[%clk 0:00:12.4]} 42... Ra2+ {[%clk 0:00:58.1]} 43.
Kf1 {[%clk 0:00:10.2]} 43... Na5 {[%clk 0:00:56.7]} 44. Rb6+ {[%clk 0:00:10.1]}
44... Kc5 {[%clk 0:00:57.8]} 45. Rg6 {[%clk 0:00:10.9]} 45... Bb5+ {[%clk
0:00:58.2]} 46. Kg1 {[%clk 0:00:10.6]} 46... e4 {[%clk 0:00:57.6]} 47. Rxg5
{[%clk 0:00:10.1]} 47... Bc4 {[%clk 0:00:56.9]} 48. Rf5 {[%clk 0:00:10.3]} 48...
Re2 {[%clk 0:00:55.6]} 49. g5 {[%clk 0:00:11.1]} 49... Rxe3 {[%clk 0:00:56.9]}
50. g6 {[%clk 0:00:04.2]} 50... Rg3 {[%clk 0:00:57.8]} 51. Rf6 {[%clk
0:00:05.4]} 51... d4 {[%clk 0:00:32]} 52. Nc2 {[%clk 0:00:05.7]} 52... d3 {[%clk
0:00:29.5]} 53. Rf5+ {[%clk 0:00:06.8]} 53... Bd5 {[%clk 0:00:26.3]} 54. Ne1
{[%clk 0:00:04.7]} 54... Rxg6 {[%clk 0:00:26.4]} 55. Nxd3+ {[%clk 0:00:04.5]}
55... exd3 {[%clk 0:00:27]} 56. Rxd3 {[%clk 0:00:06.3]} 56... Rd6 {[%clk
0:00:25.7]} 57. Rh5 {[%clk 0:00:06.7]} 57... Nc6 {[%clk 0:00:26.7]} 58. Rxh4
{[%clk 0:00:07.5]} 58... Nb4 {[%clk 0:00:27.3]} 59. Rd2 {[%clk 0:00:07.8]} 59...
Rg6 {[%clk 0:00:26.4]} 60. Rxb4 {[%clk 0:00:07.1]} 60... Bxg2 {[%clk 0:00:18.7]}
61. Rg4 {[%clk 0:00:06.3]} 61... Be4 {[%clk 0:00:13.6]} 62. Rxg6 {[%clk
0:00:06]} 62... Bxg6 {[%clk 0:00:15.5]} 63. Kf2 {[%clk 0:00:07.1]} 1-0